fUSD/lending_fUSD_20240831
["ID","MTS","AMOUNT","RATE_DAILY","PERIOD"]
[336767670,1725126232837,348.83,9.815e-05,2]
[336767683,1725126632080,-169.01,0.000116,2]
[336767684,1725126632090,-250.0,0.00011612,2]
[336767685,1725126632100,-250.0,0.00011614,2]
[336767686,1725126632109,-250.0,0.00011616,2]
[336767687,1725126632119,-200.0,0.00011621,2]
[336767688,1725126632129,-160.0,0.00011658,2]
[336767689,1725126632139,-150.0,0.00011755,2]
[336767690,1725126632149,-15943.58,0.0001176,2]
[336767691,1725126632158,-1915.45,0.00011765,2]
[336767692,1725126632169,-2000.0,0.00011778,2]
[336767693,1725126632450,-219.96,0.00011846,2]
[336767694,1725126632461,-351.1151,0.00011904,2]
[336767695,1725126632470,-499.99,0.00011933,2]
[336767696,1725126632480,-298.59,0.00011993,2]
[336767697,1725126632489,-816.38,0.00011993,2]
[336767698,1725126632499,-299.99,0.00011993,2]
[336767699,1725126632509,-840.0,0.00012004,2]
[336767700,1725126632519,-180.98,0.00012004,2]
[336767701,1725126632529,-150.0,0.00012051,2]
[336767702,1725126632539,-27646.2,0.00012052,2]
[336767703,1725126632549,-5981.51584215,0.00012052,2]
[336767704,1725126632561,-505.95034743,0.00012052,2]
[336767705,1725126632572,-5722.49381042,0.00012052,2]
[336767706,1725126632585,-348.83,0.00012079,2]
[336767707,1725126632595,-351.57017115,0.00012652,2]
[336767708,1725126632604,-477.47775837,0.000127,2]
[336767709,1725126632616,-355.41834579,0.000127,2]
[336767710,1725126632645,-1667.10389584,0.000127,2]
[336767711,1725126632656,-1071.39214293,0.00012752,2]
[336767712,1725126632666,-4814.29771349,0.000128,2]
[336767713,1725126632678,-1160.00238867,0.000128,2]
[336767714,1725126632690,-4082.66146261,0.000128,2]
[336767715,1725126632702,-10788.88930125,0.000128,2]
[336767716,1725126632713,-186652.13348973,0.000128,2]
[336767726,1725126638119,-8101.16315468,0.000128,2]
[336767727,1725126638130,-2364.01451426,0.000128,2]
[336767728,1725126638142,-724.97184001,0.000128,2]
[336767730,1725126638158,-4674.80830607,0.000128,2]
[336767731,1725126638279,-169.53541631,0.000128,2]
[336767732,1725126638290,-200.0,0.00012895,2]
[336767733,1725126638301,-55.86458369,0.00012896,2]
[336767734,1725126638312,-444.13541631,0.00012896,2]
[336767735,1725126638322,-500.0,0.00012896,2]
[336767736,1725126638333,-200.0,0.00012896,2]
[336767737,1725126638343,-200.0,0.00012896,2]
[336767738,1725126638352,-2239.831,0.000129,2]
[336767739,1725126638361,-6626.7032,0.000129,2]
[336767740,1725126638371,-589.589,0.000129,2]
[336767741,1725126638382,-223.6419,0.000129,2]
[336767742,1725126638392,-106.03068369,0.000129,2]
[336767743,1725126638404,-958.38871631,0.000129,2]
[336767744,1725126638413,-359.80323858,0.000129,2]
[336767745,1725126638424,-163.94885823,0.000129,2]
[336767746,1725126638433,-20.96562363,0.000129,2]
[336767747,1725126638453,-820.13734405,0.000129,2]
[336767748,1725126638464,-6716.93145133,0.000129,2]
[336767749,1725126638474,-510.58753188,0.000129,2]
[336767750,1725126638484,-150.0,0.00012947,2]
[336767751,1725126638493,-150.88,0.0001299,2]
[336767752,1725126638502,-150.88,0.0001299,2]
[336767753,1725126638511,-150.88,0.0001299,2]
[336767754,1725126638520,-150.88,0.0001299,2]
[336767755,1725126638530,-9154.9059224,0.00012996,2]
[336767756,1725126638543,-871.73640285,0.00012996,2]
[336767757,1725126638568,-10959.91526725,0.00012996,2]
[336767758,1725126638578,-3197.7768385,0.00012996,2]
[336767759,1725126638592,-12141.7438651,0.00012996,2]
[336767760,1725126638601,-4674.24309252,0.00012997,2]
[336767762,1725126638612,-2472.10287036,0.00012997,2]
[336767764,1725126638623,-237.38376923,0.00012998,2]
[336767765,1725126638638,-571.53689557,0.00012998,2]
[336767766,1725126638668,-129.3041466,0.00012998,2]
[336767767,1725126638678,-292.48174068,0.00012998,2]
[336767768,1725126638689,-756.50129239,0.00012998,2]
[336767769,1725126638700,-228.68998863,0.00012998,2]
[336767770,1725126638709,-501.49882417,0.00012999,2]
[336767771,1725126638719,-500.0,0.00012999,2]
[336767772,1725126638729,-163.22372697,0.00012999,2]
[336767773,1725126638742,-392.8396246,0.00012999,2]
[336767774,1725126638751,-500.0,0.00012999,2]
[336767775,1725126638760,-500.0,0.00012999,2]
[336767776,1725126638769,-500.0,0.00012999,2]
[336767777,1725126638780,-420.87516718,0.00012999,2]
[336767778,1725126638790,-150.01,0.00012999,2]
[336767779,1725126638800,-2128.56637284,0.00012999,2]
[336767780,1725126638809,-1000.0,0.00013,2]
[336767781,1725126638819,-1000.0,0.00013,2]
[336767782,1725126638829,-1000.0,0.00013,2]
[336767783,1725126638838,-1000.0,0.00013,2]
[336767784,1725126638847,-1000.0,0.00013,2]
[336767785,1725126638857,-1000.0,0.00013,2]
[336767786,1725126638867,-1000.0,0.00013,2]
[336767787,1725126638877,-1000.0,0.00013,2]
[336767788,1725126638889,-1000.0,0.00013,2]
[336767789,1725126638900,-1000.0,0.00013,2]
[336767790,1725126638910,-1000.0,0.00013,2]
[336767791,1725126638919,-1000.0,0.00013,2]
[336767792,1725126638930,-1000.0,0.00013,2]
[336767793,1725126638939,-1000.0,0.00013,2]
[336767794,1725126638949,-1000.0,0.00013,2]
[336767795,1725126638959,-1000.0,0.00013,2]
[336767796,1725126638970,-1000.0,0.00013,2]
[336767797,1725126638978,-1000.0,0.00013,2]
[336767798,1725126638988,-1000.0,0.00013,2]
[336767799,1725126638997,-1000.0,0.00013,2]
[336767800,1725126639006,-1000.0,0.00013,2]
[336767801,1725126639016,-855.0,0.00013,2]
[336767802,1725126639025,-519.0,0.00013,2]
[336767803,1725126639035,-1545.0,0.00013,2]
[336767804,1725126639044,-623.0,0.00013,2]
[336767805,1725126639055,-1300.87,0.00013,2]
[336767806,1725126639065,-447.0,0.00013,2]
[336767807,1725126639075,-303.913,0.00013,2]
[336767808,1725126639085,-150.387,0.00013,2]
[336767809,1725126639095,-556.0,0.00013,2]
[336767810,1725126639106,-930.0,0.00013,2]
[336767811,1725126639116,-552.0,0.00013,2]
[336767812,1725126639126,-1997.991,0.00013,2]
[336767813,1725126639135,-248.0,0.00013,2]
[336767814,1725126639146,-804.0,0.00013,2]
[336767815,1725126639157,-3322.0,0.00013,2]
[336767816,1725126639174,-1139.0,0.00013,2]
[336767817,1725126639188,-5767.36122669,0.00013,2]
[336767818,1725126639204,-85.63877331,0.00013,2]
[336767819,1725126639216,-1144.0,0.00013,2]
[336767820,1725126639229,-2283.56122669,0.00013,2]
[336767821,1725126639245,-11177.43877331,0.00013,2]
[336767822,1725126639258,-338.121,0.00013,2]
[336767823,1725126639271,-3731.0,0.00013,2]
[336767824,1725126639283,-153.0,0.00013,2]
[336767825,1725126639294,-150.0,0.00013,2]
[336767826,1725126639306,-1078.0,0.00013,2]
[336767827,1725126639319,-7467.16344442,0.00013,2]
[336767828,1725126639334,-435.65907833,0.00013,2]
[336767829,1725126639350,-1559.04212574,0.00013,2]
[336767831,1725126640178,-1251.85949225,0.00013,2]
[336767832,1725126640193,-335.59367541,0.00013,2]
[336767833,1725126640249,-449.03088406,0.00013,2]
[336767834,1725126640263,-685.08301683,0.00013,2]
[336767835,1725126640277,-418.43404489,0.00013,2]
[336767836,1725126640291,-16963.03151894,0.00013,2]
[336767837,1725126640305,-4302.89567398,0.00013,2]
[336767838,1725126640318,-10264.97909603,0.00013,2]
[336767839,1725126640333,-1072.66280005,0.00013,2]
[336767840,1725126640348,-5254779.80528741,0.00013,2]
[336768397,1725126646123,-150.612,0.00013,2]
[336768399,1725126646135,-260816.945463,0.00013,2]
[336768401,1725126646146,-2874.31906734,0.00013,2]
[336768414,1725126646272,-859.71593629,0.00013,2]
[336768427,1725126646388,-738.8,0.00013,2]
[336768429,1725126646400,-644.28818466,0.00013,2]
[336768435,1725126646453,-6271.4,0.00013,2]
[336768438,1725126646465,-1900.0,0.00013,2]
[336768555,1725126715143,153.21,9.387e-05,2]
[336768556,1725126759079,322.12,0.00010209,2]
[336768780,1725126783897,158.43,0.00010959,2]
[336768811,1725127247293,550.0,0.00011,2]
[336768812,1725127316863,170.59,0.00010959,2]
[336768814,1725127394496,306.01,9.932e-05,2]
[336768815,1725127397142,2000.0,0.00024,120]
[336768816,1725127410509,200.0,0.00024,120]
[336768828,1725127816810,192.75,0.00010959,2]
[336768831,1725127832279,-540.49188591,0.0001146,2]
[336768832,1725127832291,-323.01175209,0.00011502,2]
[336768833,1725127832302,-2954.83237091,0.00011502,2]
[336768834,1725127832312,-3048.43,0.0001156,2]
[336768835,1725127832322,-250.0,0.00011811,2]
[336768836,1725127832332,-238.87,0.00011856,2]
[336768837,1725127832341,-160.0,0.0001189,2]
[336768838,1725127832351,-250.0,0.00011895,2]
[336768839,1725127832361,-250.0,0.00011895,2]
[336768840,1725127832370,-219.96,0.00011989,2]
[336768841,1725127832380,-1717.5,0.00012005,2]
[336768842,1725127832389,-155.87,0.00012082,2]
[336768843,1725127832398,-2701.73,0.00012082,2]
[336768844,1725127832409,-10232.67,0.00012082,2]
[336768845,1725127832419,-150.0,0.00012133,2]
[336768846,1725127832430,-1884.27,0.00012134,2]
[336768847,1725127832439,-499.99,0.00012134,2]
[336768848,1725127832448,-528.84,0.00012134,2]
[336768849,1725127832459,-8946.59,0.00012134,2]
[336768850,1725127832470,-872.0,0.00012166,2]
[336768851,1725127832488,-306.01,0.00012196,2]
[336768852,1725127832497,-1898.0,0.000128,2]
[336768853,1725127832506,-552.0,0.000128,2]
[336768854,1725127832515,-1139.0,0.000128,2]
[336768855,1725127832525,-248.0,0.000128,2]
[336768856,1725127832534,-804.0,0.000128,2]
[336768857,1725127832543,-2190.35533509,0.000128,2]
[336768858,1725127832555,-812.9464343,0.000128,2]
[336768859,1725127832566,-318.69823061,0.000128,2]
[336768860,1725127832577,-1078.0,0.000128,2]
[336768861,1725127832587,-289.0,0.000128,2]
[336768863,1725127832596,-249.53403248,0.000128,2]
[336768864,1725127832612,-866.71,0.000128,2]
[336768865,1725127832625,-2614.75596752,0.000128,2]
[336768866,1725127832634,-517.58341528,0.000128,2]
[336768867,1725127832647,-626.41658472,0.000128,2]
[336768868,1725127832657,-78.5060296,0.000128,2]
[336768869,1725127832669,-2138.831207,0.000128,2]
[336768870,1725127832681,-653.18224521,0.000128,2]
[336768871,1725127832693,-893.59727248,0.000128,2]
[336768872,1725127832704,-784.98522457,0.000128,2]
[336768875,1725127832738,-500.0,0.000128,2]
[336768876,1725127832750,-803.89802114,0.000128,2]
[336768877,1725127832759,-2360.85197953,0.000128,2]
[336768878,1725127832771,-3987.45282922,0.000128,2]
[336768879,1725127832783,-7112.69519125,0.000128,2]
[336768880,1725127832794,-200.0,0.00012896,2]
[336768881,1725127832805,-4723.97119368,0.000129,2]
[336768882,1725127832817,-305.47677564,0.000129,2]
[336768883,1725127832826,-500.0,0.00012973,2]
[336768884,1725127832836,-150.53,0.0001299,2]
[336768885,1725127832847,-7552.7537738,0.00012996,2]
[336768886,1725127832857,-81674.6543246,0.00012996,2]
[336768887,1725127832867,-49.55978945,0.00012997,2]
[336768888,1725127832879,-115.39905298,0.00012997,2]
[336768889,1725127832889,-1170.23735172,0.00012999,2]
[336768890,1725127832899,-236.12580751,0.00013,2]
[336768891,1725127832911,-50.55719249,0.00013,2]
[336768892,1725127832920,-150.182,0.00013,2]
[336768893,1725127832931,-150.772,0.00013,2]
[336768894,1725127832941,-81.40880751,0.00013,2]
[336768902,1725127838428,-68.66519249,0.00013,2]
[336768903,1725127838438,-150.0,0.00013,2]
[336768904,1725127838448,-150.0,0.00013,2]
[336768905,1725127838457,-447.0,0.00013,2]
[336768906,1725127838467,-665.33876948,0.00013,2]
[336768907,1725127838543,-593.66123052,0.00013,2]
[336768908,1725127838552,-1282.999,0.00013,2]
[336768909,1725127838562,-623.0,0.00013,2]
[336768910,1725127838571,-681.51221573,0.00013,2]
[336768911,1725127838583,-128.48778427,0.00013,2]
[336768912,1725127838593,-150.0,0.00013,2]
[336768913,1725127838602,-556.0,0.00013,2]
[336768914,1725127838613,-772.24323724,0.00013,2]
[336768915,1725127838727,-157.75676276,0.00013,2]
[336768916,1725127838738,-54590.61281679,0.00013,2]
[336768919,1725127840348,-765.20699568,0.00013,2]
[336768920,1725127840361,-2081.01496114,0.00013,2]
[336768921,1725127840653,-288.55049625,0.00013,2]
[336769404,1725127846457,-343.53915486,0.00013,2]
[336769408,1725127846486,-91.58484514,0.00013,2]
[336769410,1725127846497,-430.43413758,0.00013,2]
[336769424,1725127846623,-333.04978977,0.00013,2]
[336769426,1725127846636,-416.0689448,0.00013,2]
[336769808,1725127910426,293.73,0.00010583,2]
[336769809,1725128010708,175.26,9.788e-05,2]
[336769810,1725128310478,153.21,9.203e-05,2]
[336769811,1725128365042,-3178.32465912,0.00011881,2]
[336769812,1725128365064,-160.0,0.00011922,2]
[336769813,1725128365087,-150.0,0.00011981,2]
[336769815,1725128399542,152.52,0.00010959,2]
[336769816,1725128410447,279.04,0.0001011,2]
[336769817,1725128585114,500.0,0.0001011,2]
[336769818,1725128608701,200.0,0.00010959,2]
[336769823,1725128896795,600.0,0.00010959,2]
[336769825,1725128900654,269.65,0.00010959,2]
[336769826,1725128906128,265.08,9.927e-05,2]
[336769875,1725129031546,-839.21568449,0.00011566,2]
[336769877,1725129031560,-599.63924013,0.00011566,2]
[336769879,1725129031574,-1739.4697345,0.00011566,2]
[336769880,1725129031586,-250.0,0.00011666,2]
[336769882,1725129031597,-150.0,0.00011688,2]
[336769883,1725129031607,-1000.0,0.00011716,2]
[336769884,1725129031618,-250.0,0.00011742,2]
[336769885,1725129031629,-150.0,0.00011747,2]
[336769886,1725129031640,-155.88,0.00011787,2]
[336769887,1725129031651,-250.0,0.0001181,2]
[336769889,1725129031662,-500.0,0.00011817,2]
[336769890,1725129031673,-214.98,0.00011845,2]
[336769891,1725129031683,-637.88,0.00011867,2]
[336769892,1725129031694,-1500.0,0.00011881,2]
[336769893,1725129031705,-175.76,0.00012023,2]
[336769894,1725129031717,-499.99,0.00012023,2]
[336769895,1725129031727,-300.0,0.00012027,2]
[336769897,1725129031738,-299.0,0.00012027,2]
[336769899,1725129031750,-15118.41,0.00012028,2]
[336769901,1725129031760,-183.19,0.0001203,2]
[336769903,1725129031771,-265.08,0.00012191,2]
[336769905,1725129031783,-150.0,0.00012899,2]
[336769907,1725129031795,-355.7893,0.000129,2]
[336769910,1725129031809,-100929.3075,0.000129,2]
[336769912,1725129031821,-500.0,0.00012973,2]
[336769914,1725129031834,-39302.35298277,0.00012985,2]
[336769917,1725129031845,-150.84,0.0001299,2]
[336769920,1725129031856,-740.74290093,0.00012995,2]
[336769923,1725129031867,-1584.1479119,0.00012996,2]
[336769925,1725129031882,-29022.9398467,0.00012996,2]
[336769927,1725129031894,-532.77504963,0.00012999,2]
[336769929,1725129031905,-500.0,0.00012999,2]
[336769931,1725129031916,-500.0,0.00012999,2]
[336769933,1725129031927,-500.0,0.00012999,2]
[336769935,1725129031939,-500.0,0.00012999,2]
[336769938,1725129031950,-500.0,0.00012999,2]
[336769940,1725129031962,-500.0,0.00012999,2]
[336769942,1725129031974,-589.28296505,0.00012999,2]
[336769944,1725129031985,-500.0,0.00012999,2]
[336769946,1725129031995,-500.0,0.00012999,2]
[336769948,1725129032007,-500.0,0.00012999,2]
[336769950,1725129032018,-500.0,0.00012999,2]
[336769952,1725129032030,-500.0,0.00012999,2]
[336769954,1725129032042,-500.0,0.00012999,2]
[336769956,1725129032053,-500.0,0.00012999,2]
[336769958,1725129032064,-500.0,0.00012999,2]
[336769960,1725129032076,-500.0,0.00012999,2]
[336769962,1725129032087,-500.0,0.00012999,2]
[336769964,1725129032098,-532.1415932,0.00012999,2]
[336769966,1725129032110,-522.0,0.00013,2]
[336769968,1725129032121,-325.89,0.00013,2]
[336769970,1725129032132,-551.0,0.00013,2]
[336769973,1725129032143,-1308.95222963,0.00013,2]
[336769975,1725129032157,-300.0,0.00013,2]
[336769977,1725129032199,-287.04777037,0.00013,2]
[336769978,1725129032209,-300.96381701,0.00013,2]
[336769995,1725129039623,-1303.071494,0.00011508,2]
[336769997,1725129039633,-383.03618299,0.00013,2]
[336769999,1725129039642,-333.561,0.00013,2]
[336770000,1725129039652,-556.79879919,0.00013,2]
[336770002,1725129039669,-1871.75420081,0.00013,2]
[336770003,1725129039679,-247.0,0.00013,2]
[336770004,1725129039688,-2009.155,0.00013,2]
[336770006,1725129039698,-289.0,0.00013,2]
[336770007,1725129039707,-5853.0,0.00013,2]
[336770008,1725129039717,-13461.0,0.00013,2]
[336770009,1725129039728,-623.0,0.00013,2]
[336770010,1725129039738,-447.0,0.00013,2]
[336770011,1725129039748,-87907.99408657,0.00013,2]
[336770012,1725129039760,-566.7453937,0.00013,2]
[336770013,1725129039823,-1242.35735466,0.00013,2]
[336770014,1725129039917,-3408.16965506,0.00013,2]
[336770015,1725129039929,-1345.2272652,0.00013,2]
[336770030,1725129042614,-500.0,0.00012973,2]
[336770031,1725129042623,-1102.619,0.00013,2]
[336770032,1725129042633,-3830.75308502,0.00013,2]
[336770140,1725129044359,-2842.55678398,0.00013,2]
[336770142,1725129044370,-1740.63,0.00013,2]
[336770181,1725129045551,-349.99877428,0.00013,2]
[336770182,1725129045703,-287.88767852,0.00013,2]
[336770184,1725129055578,550.0,0.00011,2]
[336770185,1725129082094,175.26,0.0001021,2]
[336770186,1725129210475,200.0,0.00010959,2]
[336770193,1725129406442,153.83,0.00010959,2]
[336770197,1725129465348,259.72,0.00010237,2]
[336770212,1725129602863,151.08468512,0.00010237,2]
[336770213,1725129809137,200.0,0.00010959,2]
[336770226,1725130065369,164.51,0.00010959,2]
[336770228,1725130158697,246.73,0.00010008,2]
[336770265,1725130231953,-250.0,0.00011884,2]
[336770267,1725130231962,-515.02,0.00011886,2]
[336770269,1725130231972,-218.75,0.00011893,2]
[336770270,1725130231981,-533.37,0.00011895,2]
[336770273,1725130231990,-300.0,0.0001197,2]
[336770276,1725130231999,-1027.44904,0.0001197,2]
[336770280,1725130232010,-4790.59023949,0.0001197,2]
[336770281,1725130232021,-1326.854496,0.0001197,2]
[336770282,1725130232033,-1241.68,0.0001197,2]
[336770283,1725130232044,-572.14458097,0.0001197,2]
[336770284,1725130232055,-5995.95833033,0.0001197,2]
[336770285,1725130232066,-300.6,0.0001197,2]
[336770286,1725130232077,-1136.7237882,0.0001197,2]
[336770287,1725130232095,-693.07048271,0.0001197,2]
[336770290,1725130237805,-5822.32424264,0.0001197,2]
[336770291,1725130237852,-703.01355159,0.0001197,2]
[336770292,1725130237990,-1282.16618887,0.0001197,2]
[336770293,1725130238000,-250.0,0.0001197,2]
[336770294,1725130238010,-250.0,0.00011971,2]
[336770295,1725130238019,-183.19,0.00011988,2]
[336770296,1725130238029,-800.0,0.00012008,2]
[336770297,1725130238039,-2380.42,0.00012012,2]
[336770298,1725130238049,-150.0,0.00012027,2]
[336770299,1725130238058,-150.99,0.00012027,2]
[336770300,1725130238067,-503.0,0.00012027,2]
[336770301,1725130238076,-499.99,0.00012027,2]
[336770302,1725130238086,-179.99,0.00012027,2]
[336770303,1725130238095,-150.99,0.00012027,2]
[336770304,1725130238104,-200.0,0.00012125,2]
[336770305,1725130238113,-246.73,0.00012272,2]
[336770306,1725130238122,-258.91,0.00012507,2]
[336770307,1725130238132,-150.0,0.00012799,2]
[336770308,1725130238141,-11193.10470325,0.000128,2]
[336770309,1725130238153,-303.22475211,0.000128,2]
[336770310,1725130238172,-304.94405594,0.000128,2]
[336770311,1725130238184,-782.53154917,0.000128,2]
[336770313,1725130239840,-1325.87087914,0.000128,2]
[336770314,1725130239852,-291.61615706,0.000128,2]
[336770315,1725130239863,-2556.58178938,0.000128,2]
[336770316,1725130239875,-1585.78305731,0.000128,2]
[336770317,1725130239887,-3281.9,0.000128,2]
[336770318,1725130239929,-1825.57743907,0.000128,2]
[336770319,1725130240121,-3525.44837748,0.000128,2]
[336770320,1725130240134,-556.3134394,0.000128,2]
[336770321,1725130240143,-150.0,0.000128,2]
[336770322,1725130240153,-1098.7865606,0.0001287,2]
[336770327,1725130242751,-1901.2134394,0.0001287,2]
[336770328,1725130242761,-914.68656061,0.0001287,2]
[336770329,1725130242772,-2085.31343939,0.0001287,2]
[336770330,1725130242782,-3913.28656061,0.00012896,2]
[336770334,1725130244193,-591.9999999,0.00012896,2]
[336770335,1725130244224,-998.16262769,0.00012896,2]
[336770336,1725130244236,-1055.1573118,0.00012896,2]
[336770337,1725130244245,-219.8426882,0.00012896,2]
[336770338,1725130244484,-711.82512358,0.00012896,2]
[336770342,1725130245770,-1301.37556257,0.00012896,2]
[336770343,1725130245863,-2695.8483424,0.00012896,2]
[336770344,1725130245884,-859.98608325,0.00012896,2]
[336770345,1725130245893,-150.0,0.000129,2]
[336770346,1725130245902,-266.74,0.000129,2]
[336770347,1725130245912,-150.3,0.000129,2]
[336770348,1725130245921,-1202.67726675,0.000129,2]
[336770349,1725130245946,-1680.70532988,0.000129,2]
[336770351,1725130245958,-59.66532128,0.000129,2]
[336770352,1725130245968,-1000.0,0.0001295,3]
[336770353,1725130245980,-370.88057693,0.0001295,3]
[336770354,1725130245994,-629.11942307,0.0001295,3]
[336770355,1725130246006,-275.11653693,0.0001295,3]
[336770356,1725130246024,-724.88346307,0.0001295,3]
[336770357,1725130246034,-1000.0,0.0001295,3]
[336770358,1725130246045,-500.0,0.00012973,2]
[336770359,1725130246056,-10000.0,0.00012983,2]
[336770360,1725130246066,-1654.507,0.00013,2]
[336770361,1725130246077,-9255.24384274,0.00013,2]
[336770367,1725130714689,256.5,0.00010066,2]
[336770369,1725130863544,550.0,0.00011,2]
[336770370,1725131009986,200.0,0.00010959,2]
[336770371,1725131217286,243.67,9.778e-05,2]
[336771401,1725131431890,-517.85511205,0.00011613,2]
[336771402,1725131431902,-820.87408869,0.00011613,2]
[336771403,1725131431941,-22551.27079926,0.00011613,2]
[336771404,1725131431950,-766.0,0.00011618,2]
[336771405,1725131431960,-1786.7,0.00011619,2]
[336771406,1725131431969,-1500.0,0.00011646,2]
[336771407,1725131431978,-250.0,0.00011672,2]
[336771408,1725131431990,-1237.01,0.00011675,2]
[336771409,1725131431999,-5827.1577,0.00011684,2]
[336771410,1725131432008,-402.52,0.00011717,2]
[336771411,1725131432018,-250.0,0.00011721,2]
[336771412,1725131432027,-207.13,0.00011739,2]
[336771413,1725131432037,-640.0,0.00011769,2]
[336771414,1725131432047,-499.99,0.00011882,2]
[336771415,1725131432056,-243.67,0.00012042,2]
[336771416,1725131432065,-360.0,0.00012092,2]
[336771417,1725131432074,-249.19468293,0.00012262,2]
[336771418,1725131432084,-150.0,0.00012271,2]
[336771419,1725131432093,-34838.77,0.00012272,2]
[336771420,1725131432102,-199.32,0.00012309,2]
[336771421,1725131432112,-6429.61090775,0.0001235,2]
[336771422,1725131432122,-3209.737,0.000128,2]
[336771423,1725131432130,-352.6593,0.000128,2]
[336771424,1725131432140,-361.415,0.0001287,2]
[336771425,1725131432149,-500.0,0.00012873,2]
[336771426,1725131432159,-268.98612969,0.00012899,2]
[336771427,1725131432170,-500.0,0.00012899,2]
[336771428,1725131432185,-429.50007452,0.00012899,2]
[336771429,1725131432194,-500.0,0.00012899,2]
[336771430,1725131432203,-19181.1897,0.000129,2]
[336771431,1725131432213,-280.9936,0.000129,2]
[336771432,1725131432221,-268.0911,0.000129,2]
[336771433,1725131432231,-15334.2502,0.000129,2]
[336771434,1725131432240,-339.508,0.000129,2]
[336771435,1725131432249,-5583.0098,0.000129,2]
[336771436,1725131432258,-741.2553,0.000129,2]
[336771437,1725131432267,-209728.56103122,0.000129,2]
[336771438,1725131432277,-151.0,0.000129,2]
[336771439,1725131432287,-151.0,0.000129,2]
[336771440,1725131432295,-151.0,0.000129,2]
[336771441,1725131432304,-2630.109566,0.000129,2]
[336771442,1725131432313,-2630.109566,0.000129,2]
[336771443,1725131432322,-151.0,0.000129,2]
[336771444,1725131432332,-151.0,0.000129,2]
[336771445,1725131432341,-399.004524,0.000129,2]
[336771446,1725131432350,-399.004524,0.000129,2]
[336771447,1725131432359,-151.0,0.000129,2]
[336771448,1725131432368,-193.146678,0.000129,2]
[336771449,1725131432378,-193.146678,0.000129,2]
[336771450,1725131432388,-775.44773,0.000129,2]
[336771451,1725131432397,-775.44773,0.000129,2]
[336771452,1725131432408,-255.803918,0.000129,2]
[336771453,1725131432419,-255.803918,0.000129,2]
[336771454,1725131432428,-601.06988555,0.00012973,2]
[336771455,1725131432437,-500.0,0.00012973,2]
[336771456,1725131432446,-310.22574178,0.00012973,2]
[336771457,1725131432455,-263.2636356,0.0001299,2]
[336771458,1725131432465,-263.2636356,0.0001299,2]
[336771459,1725131432476,-263.2636356,0.0001299,2]
[336771460,1725131432485,-150.84,0.0001299,2]
[336771461,1725131432494,-151.0,0.00012997,2]
[336771462,1725131432503,-152.535705,0.00012997,2]
[336771463,1725131432513,-225.652246,0.00012997,2]
[336771464,1725131432522,-151.0,0.00012997,2]
[336771465,1725131432531,-555.246813,0.00012997,2]
[336771466,1725131432540,-225.652246,0.00012997,2]
[336771467,1725131432549,-6108.4977243,0.00012997,2]
[336771468,1725131432558,-555.246813,0.00012997,2]
[336771469,1725131432567,-187.843107,0.00012997,2]
[336771470,1725131432576,-151.0,0.00012997,2]
[336771471,1725131432585,-700.227246,0.00012997,2]
[336771472,1725131432594,-151.0,0.00012997,2]
[336771473,1725131432603,-151.0,0.00012997,2]